bitfinex-derivatives/quotes_ETHF0:USTF0_20250926
["timestamp","ask_amount","ask_price","bid_price","bid_amount"]
[1758897859040,3.8353,3938.6,3938.5,1.09891]
[1758897859243,3.8353,3938.6,3938.3,0.0031241]
[1758897859244,1.08422,3938.5,3938.3,0.0031241]
[1758897859439,0.6275,3938.5,3938.4,0.45672]
[1758897859643,1.08422,3938.4,3938.3,0.0031241]
[1758897860138,0.6275,3938.4,3938.3,0.0031241]
[1758897860338,0.6275,3938.4,3938.3,0.4598541]
[1758897860534,3.8353,3938.6,3938.5,0.45671]
[1758897860935,3.2078,3938.6,3938.5,1.09971]
[1758897861948,3.8353,3938.6,3938.5,1.36871]
[1758897862138,3.2078,3938.6,3938.5,1.36871]
[1758897863245,3.2078,3939.1,3939.0,1.09965]
[1758897863446,3.2078,3939.1,3939.0,1.37075]
[1758897863942,0.0253,3939.3,3939.2,0.45663]
[1758897864147,0.0253,3939.3,3939.2,1.36863]
[1758897864333,0.00302453,3940.1,3940.0,0.72763]
[1758897864539,0.00302453,3940.1,3940.0,1.63963]
[1758897864937,0.00302453,3940.1,3940.0,6.63963]
[1758897865139,3.2078,3941.1,3940.9,0.45642]
[1758897865352,0.17659927,3941.6,3941.5,1.09936]
[1758897865539,0.17659927,3941.6,3941.5,1.63946]
[1758897865842,3.2078,3941.8,3941.7,0.45634]
[1758897866044,3.20999799,3941.8,3941.7,1.1018088]
[1758897866345,3.83749799,3941.8,3941.7,0.0024688]
[1758897866642,0.00219799,3941.8,3941.7,5.6454688]
[1758897867232,0.00219799,3941.8,3941.7,5.9144688]
[1758897867435,0.00219799,3941.8,3941.7,0.9144688]
[1758897867634,0.00219799,3941.8,3941.7,0.6454688]
[1758897867834,3.83749799,3941.8,3941.7,0.0024688]
[1758897868947,8.83749799,3941.8,3941.7,0.0024688]
[1758897869146,8.83749799,3941.8,3940.6,3.2078]
[1758897869344,0.6275,3940.9,3940.5,0.643]
[1758897869545,3.2078,3941.0,3940.6,0.45645]
[1758897869737,0.45646,3940.6,3940.4,0.912]
[1758897869938,3.8353,3941.0,3940.4,0.912]
[1758897870243,0.6275,3940.5,3940.4,0.2714107]
[1758897870447,3.4741,3941.0,3940.4,0.2714107]
[1758897870640,0.45645,3940.8,3940.4,0.9144107]
[1758897870841,0.6275,3940.7,3940.4,0.9144107]
[1758897871034,0.45647,3940.6,3940.4,0.2714107]
[1758897871238,0.45643,3940.9,3940.5,0.45647]
[1758897871440,0.45648,3940.5,3940.4,0.0024107]
[1758897871641,1.08398,3940.5,3940.4,0.0024107]
[1758897871950,0.6275,3940.5,3940.4,0.0024107]
[1758897872539,0.8938,3940.5,3940.4,0.0024107]
[1758897872954,0.98771472,3940.5,3940.4,0.0024107]
[1758897876051,0.6275,3939.3,3938.8,3.2078]
[1758897876252,1.08412,3939.3,3938.8,3.2078]
[1758897876455,0.2663,3939.5,3939.1,0.45663]
[1758897876651,1.08415,3939.0,3938.8,0.643]
[1758897876858,1.08415,3939.0,3938.6,0.269]
[1758897876859,0.6275,3938.7,3938.6,0.72569]
[1758897877058,0.6275,3939.1,3939.0,0.45664]
[1758897877244,0.63035173,3939.1,3938.8,0.45667]
[1758897877444,0.00285173,3939.1,3938.9,0.45666]
[1758897877650,0.00285173,3939.1,3939.0,0.6234]
[1758897878354,0.00285173,3939.1,3939.0,0.8742]
[1758897878657,0.00285173,3939.1,3939.0,5.8742]
[1758897879054,1.73e-06,3939.1,3939.0,5.8742]
[1758897879253,3.2078,3939.9,3939.8,1.07996]
[1758897879554,3.2078,3939.9,3939.8,1.34896]
[1758897879761,3.2078,3939.9,3939.8,6.34896]
[1758897880148,3.21106829,3939.9,3939.8,6.34896]
[1758897880552,3.21106829,3939.9,3939.8,1.34896]
[1758897880754,3.2078,3940.3,3940.2,0.45651]
[1758897881057,3.831,3941.1,3941.0,0.45642]
[1758897881256,0.45642,3941.0,3940.8,0.45644]
[1758897881457,0.71733838,3940.9,3940.8,0.45644]
[1758897881957,0.71947392,3940.9,3940.8,0.45644]
[1758897882555,0.71947392,3940.9,3940.8,1.07984]
[1758897882556,0.00213554,3940.9,3940.8,1.07984]
[1758897883261,0.00213554,3940.9,3940.8,6.07984]
[1758897883657,0.00213554,3940.9,3940.8,6.34884]
[1758897884160,3.2078,3943.1,3942.0,0.2508]
[1758897884362,1.80982356,3944.2,3944.1,1.07946]
[1758897884665,3.2078,3945.1,3944.2,0.6234]
[1758897884959,0.6232,3944.9,3944.5,5.2978095]
[1758897885164,0.6232,3944.7,3944.6,0.269]
[1758897885464,0.6232,3944.6,3944.5,0.7274451]
[1758897885759,0.6232,3944.6,3944.5,0.0024451]
[1758897885965,0.7173393,3944.6,3944.5,0.0024451]
[1758897886264,5.7173393,3944.6,3944.5,0.0024451]
[1758897886757,5.7173393,3944.6,3943.4,3.2078]
[1758897886758,0.8842,3944.5,3943.4,3.2078]
[1758897886961,0.45612,3943.7,3943.4,3.2078]
[1758897887366,0.45612,3943.7,3943.4,3.66394]
[1758897887562,0.45612,3943.7,3943.4,3.2078]
[1758897887756,0.6232,3943.6,3943.4,3.20995822]
[1758897888065,0.6232,3943.5,3943.4,0.00215822]
[1758897888562,0.97816636,3943.5,3943.4,0.00215822]
[1758897888751,0.6232,3943.5,3943.4,0.00215822]
[1758897890068,0.97816414,3943.5,3943.4,0.00215822]
[1758897890265,0.97816414,3943.5,3942.4,0.45626]
[1758897890266,0.45622,3942.8,3942.4,0.45626]
[1758897890562,3.2078,3942.8,3942.2,3.2078]
[1758897890760,0.09393198,3942.7,3942.2,3.4768]
[1758897891061,0.45621,3942.9,3942.6,0.45623]
[1758897891258,0.269,3943.3,3942.6,0.45623]
[1758897891259,0.6232,3942.7,3942.6,0.00314843]
[1758897893064,0.45617,3943.2,3942.9,0.45619]
[1758897893365,3.2078,3943.6,3943.0,0.6234]
[1758897893366,0.09405418,3943.1,3943.0,0.6234]
[1758897893664,4.28712,3943.6,3943.0,0.6234]
[1758897893864,0.55022949,3943.5,3943.2,0.45616]
[1758897894058,0.6232,3943.3,3943.2,0.45616]
[1758897894867,0.45615,3943.4,3943.0,0.269]
[1758897895052,0.71713,3943.5,3943.1,0.45617]
[1758897895261,0.0940936,3943.4,3943.0,0.269]
[1758897895562,0.6232,3943.0,3942.9,0.45619]
[1758897895860,0.6232,3943.0,3942.9,0.72519]
[1758897896057,0.6232,3943.0,3942.9,0.45619]
[1758897896258,0.6232,3942.7,3942.6,0.00314843]
[1758897896664,0.7172249,3942.7,3942.6,0.00314843]
[1758897899760,0.6232,3942.7,3942.6,0.00314843]
[1758897900362,0.45622,3942.8,3942.7,0.6234]
[1758897900568,0.55026605,3942.8,3942.7,0.6234]
[1758897900867,1.07942,3942.7,3942.6,0.00314843]
[1758897901459,0.45622,3942.7,3942.6,0.00314843]
[1758897901762,1.17345565,3942.7,3942.6,0.00314843]
[1758897902669,1.07942,3942.7,3942.6,0.00314843]
[1758897903070,1.17340633,3942.7,3942.6,0.00314843]
[1758897903370,0.6232,3942.3,3941.7,0.184]
[1758897903665,0.261,3942.5,3942.2,0.45627]
[1758897903864,1.07947,3942.3,3942.2,0.45627]
[1758897904059,3.2078,3942.7,3942.2,0.6234]
[1758897904261,3.2078,3942.7,3942.2,0.45897891]
[1758897904262,0.45627,3942.3,3942.2,0.45897891]
[1758897904562,3.2078,3942.7,3942.2,0.45897891]
[1758897904563,0.45623,3942.7,3942.6,0.45622]
[1758897904769,0.45623,3942.7,3942.6,1.07962]
[1758897904963,0.45621,3942.9,3942.3,0.269]
[1758897905264,0.6485,3943.3,3942.7,0.6234]
[1758897905567,0.0253,3943.3,3943.2,0.6355]
[1758897905765,0.0253,3943.3,3942.5,0.2657]
[1758897905766,0.11935227,3943.3,3942.8,0.269]
[1758897905970,0.6645,3942.9,3942.8,0.269]
[1758897906167,0.6645,3943.0,3942.5,0.45624]
[1758897906361,0.2722,3943.0,3942.4,0.45626]
[1758897906565,0.45623,3942.7,3942.5,0.72524]
[1758897906770,0.45627,3942.4,3942.2,0.63820891]
[1758897906972,0.6645,3942.5,3942.4,0.45626]
[1758897907663,0.45626,3942.4,3942.3,0.269]
[1758897907858,0.6818,3942.3,3942.2,0.00270891]
[1758897908064,0.77590358,3942.3,3942.2,0.00270891]
[1758897909092,4.48149614,3945.6,3944.4,0.45603]
[1758897909374,4.48149614,3945.6,3944.0,1.14018]
[1758897909375,3.2078,3946.1,3945.8,0.6746]
[1758897909563,1.10472356,3946.1,3945.8,0.9476]
[1758897909770,0.0253,3946.0,3945.8,1.40346]
[1758897910069,0.0253,3946.3,3946.2,1.13042]
[1758897910264,0.00230111,3946.3,3946.2,0.45850881]
[1758897910569,1.11e-06,3946.4,3946.2,5.45850881]
[1758897910769,0.124,3948.0,3947.5,0.45567]
[1758897910969,0.50507418,3947.9,3947.5,1.13027]
[1758897911174,1.10472356,3947.6,3947.3,0.6746]
[1758897911371,1.10472356,3947.4,3947.3,1.13029]
[1758897911670,1.10691176,3947.4,3947.3,1.13029]
[1758897911868,0.0021882,3947.4,3947.3,1.13029]
[1758897912376,0.0021882,3947.4,3947.3,0.6746]
[1758897912673,0.0021882,3947.4,3947.3,0.9476]
[1758897913075,0.0021882,3947.4,3947.3,0.6746]
[1758897913272,0.0021882,3947.4,3947.3,0.9476]
[1758897913964,0.0021882,3947.4,3947.3,1.40329]
[1758897914165,0.0021882,3947.4,3947.3,0.9476]
[1758897914569,0.0021882,3947.4,3947.3,0.6746]
[1758897914772,0.0021882,3947.4,3947.3,0.9476]
[1758897915179,0.45569,3947.3,3947.2,3.2078]
[1758897915376,1.10472356,3947.3,3947.2,4.1554]
[1758897915675,0.0021882,3947.4,3947.3,0.6746]
[1758897916479,0.0021882,3947.4,3947.3,0.9476]
[1758897917778,0.0021882,3947.4,3947.3,0.6746]
[1758897918174,0.0021882,3947.4,3946.5,0.2522]
[1758897918175,0.45572,3947.1,3946.8,3.2078]
[1758897918380,1.71032356,3946.9,3946.8,3.2078]
[1758897918569,0.45581,3946.3,3946.2,0.00268881]
[1758897918771,1.10472356,3946.3,3946.2,0.27568881]
[1758897918971,1.10472356,3946.3,3946.2,0.67728881]
[1758897919172,1.71032356,3946.3,3946.2,0.00268881]
[1758897919476,1.10472356,3946.3,3946.2,0.00268881]
[1758897919669,6.71032356,3946.3,3946.2,0.00268881]
[1758897919868,0.6056,3946.2,3945.6,0.272]
[1758897920175,0.6056,3946.2,3945.5,3.2078]
[1758897920176,1.56060356,3945.7,3945.5,3.2078]
[1758897920371,1.10472356,3945.6,3945.5,3.2078]
[1758897920872,0.45586,3945.9,3945.7,0.45587]
[1758897921071,0.45586,3945.9,3945.8,0.6746]
[1758897921272,0.45583,3946.1,3946.0,0.6746]
[1758897921580,1.10472356,3946.1,3946.0,3.8824]
[1758897921881,1.10472356,3946.1,3946.0,3.2078]
[1758897922075,1.10472356,3946.1,3945.5,4.59306516]
[1758897922076,0.45584,3946.0,3945.5,4.59306516]
[1758897922374,0.45584,3946.0,3945.8,0.9466]
[1758897922579,0.45584,3946.1,3946.0,0.6746]
[1758897922775,1.13944,3946.6,3946.0,0.6746]
[1758897922776,3.2078,3946.8,3946.0,0.9268]
[1758897922966,3.2078,3946.8,3946.2,0.6746]
[1758897922967,1.10472356,3946.4,3946.2,0.6746]
[1758897923171,1.10472356,3946.4,3946.1,0.272]
[1758897923376,1.10472356,3946.4,3946.2,0.9466]
[1758897923581,1.56052356,3946.4,3946.2,0.9466]
[1758897923879,1.56052356,3946.4,3946.3,0.6746]
[1758897924080,1.10472356,3946.4,3946.3,0.6746]
[1758897925674,1.06144,3946.0,3945.9,3.2078]
[1758897925973,2.16616356,3946.0,3945.9,3.2078]
[1758897926477,1.10472356,3946.0,3945.9,3.8824]
[1758897926685,3.2078,3946.8,3946.0,0.2522]
[1758897926978,3.2078,3946.8,3946.2,0.6746]
[1758897926979,1.10472356,3946.4,3946.2,0.6746]
[1758897927183,1.0614,3946.4,3946.3,0.272]
[1758897927474,1.0614,3946.4,3945.5,0.25477516]
[1758897927475,0.45589,3945.6,3945.5,3.21037516]
[1758897927782,1.10472356,3945.6,3945.5,3.88497516]
[1758897927987,0.6056,3946.3,3945.6,0.6746]
[1758897928284,1.10472356,3946.0,3945.9,3.66365]
[1758897928479,0.4558,3946.4,3946.2,0.45581]
[1758897928777,0.45589,3945.7,3945.5,3.46257516]
[1758897928982,1.10472356,3945.6,3945.5,4.13717516]
[1758897929185,1.10472356,3945.6,3945.5,4.40917516]
[1758897929482,0.45589,3945.6,3945.5,4.19047516]
[1758897929680,0.45589,3945.6,3945.5,3.73457516]
[1758897929878,1.56061356,3945.6,3945.5,3.21037516]
[1758897930082,1.56061356,3945.6,3945.5,3.48237516]
[1758897930678,0.45584,3946.1,3945.5,4.40917516]
[1758897930871,3.2078,3946.4,3945.5,3.73457516]
[1758897931180,1.10472356,3946.0,3945.9,0.6746]
[1758897931372,1.10472356,3946.0,3945.9,1.40246]
[1758897931580,0.45585,3946.0,3945.9,1.40246]
[1758897931778,0.45585,3946.0,3945.9,0.6746]
[1758897932087,0.45589,3945.6,3945.5,3.21037516]
[1758897932276,1.56061356,3945.6,3945.5,0.94917516]
[1758897932476,2.16621356,3945.6,3945.5,0.00257516]
[1758897932675,15.71621356,3945.6,3945.5,0.00257516]
[1758897932878,18.92401356,3945.6,3945.5,0.00257516]
[1758897933186,1.06155,3945.1,3945.0,3.2078]
[1758897933478,1.56067356,3945.1,3945.0,3.2078]
[1758897933683,0.456,3944.7,3944.6,3.8824]
[1758897933983,0.45605,3944.2,3944.1,3.2078]
[1758897934188,0.4561,3943.8,3943.7,0.6746]
[1758897934487,1.74892497,3944.2,3943.8,0.6746]
[1758897934488,0.45608,3944.0,3943.8,0.6746]
[1758897934682,0.00316497,3944.2,3943.8,0.6746]
[1758897934885,0.00316497,3944.2,3944.0,3.91607]
[1758897935087,0.00316497,3944.2,3944.1,0.9466]
[1758897935682,0.45606,3944.1,3944.0,3.2078]
[1758897935987,2.16638356,3944.1,3944.0,3.2078]
[1758897936688,7.16638356,3944.1,3944.0,3.2078]
[1758897936883,7.16638356,3944.1,3943.7,0.00185023]
[1758897936884,1.0617,3943.8,3943.7,0.00185023]
[1758897937082,1.56082356,3943.8,3943.7,0.00185023]
[1758897937386,0.4561,3943.8,3943.7,0.67645023]
[1758897937783,1.56082356,3943.8,3943.7,0.67645023]
[1758897938178,1.56082356,3943.8,3943.7,0.00185023]
[1758897938383,7.21392356,3943.8,3943.7,0.00185023]
[1758897938581,9.76862356,3943.8,3943.7,0.00185023]
[1758897938885,5.42172356,3943.8,3943.7,0.00185023]
[1758897939579,4.76862356,3943.8,3943.7,0.66005023]
[1758897940485,1.56082356,3943.8,3943.7,0.66005023]
[1758897941180,1.56082356,3943.8,3943.7,0.00185023]
[1758897941387,2.21392356,3943.8,3943.7,0.00185023]
[1758897941788,7.21392356,3943.8,3942.9,3.2078]
[1758897941983,0.45619,3943.0,3942.9,3.866]
[1758897942889,0.45624,3942.6,3942.4,0.6582]
[1758897943097,0.45629,3942.2,3942.1,3.866]
[1758897943382,1.56101356,3942.2,3942.1,3.2078]
[1758897943593,1.56101356,3942.2,3942.1,3.866]
[1758897943896,2.21411356,3942.2,3942.1,0.00288027]
[1758897944190,1.10943,3941.8,3941.7,3.2078]
[1758897944395,1.14091,3941.6,3941.3,3.2078]
[1758897944694,0.45643,3941.0,3940.9,3.2078]
[1758897944982,0.45643,3941.0,3940.9,3.86906542]
[1758897944983,1.56115356,3941.0,3940.9,3.86906542]
[1758897945189,1.56319035,3941.0,3940.9,3.86906542]
[1758897945986,1.56319035,3941.0,3940.9,0.66126542]
[1758897946383,1.56319035,3941.0,3940.9,0.00306542]
[1758897946585,1.56319035,3941.0,3940.9,0.66126542]
[1758897947692,0.45652,3940.2,3940.1,3.2078]
[1758897947992,0.45652,3940.2,3940.1,3.866]
[1758897948690,0.45658,3939.7,3939.6,3.2078]
[1758897948884,1.56130356,3939.7,3939.6,3.2078]
[1758897949092,5.30318143,3940.5,3939.6,3.866]
[1758897949292,0.45657,3939.8,3939.7,0.6582]
[1758897949692,1.56129356,3939.8,3939.7,0.66077265]
[1758897950086,1.56129356,3939.8,3939.7,0.00257265]
[1758897950287,2.21439356,3939.8,3939.7,0.00257265]
[1758897950488,1.56129356,3939.8,3939.7,0.00257265]
[1758897950697,2.21439356,3939.8,3939.7,0.00257265]
[1758897950892,5.42219356,3939.8,3939.7,0.00257265]
[1758897951087,0.45663,3939.2,3939.1,3.866]
[1758897951291,0.45663,3939.2,3939.1,0.6582]
[1758897951292,1.56135356,3939.2,3939.1,0.6582]
[1758897951495,0.45668,3938.8,3938.7,3.4788]
[1758897951692,0.45668,3938.8,3938.7,3.866]
[1758897951888,5.75984143,3939.0,3938.7,3.866]
[1758897952199,1.10472356,3938.8,3938.7,3.86794139]
[1758897952591,0.45667,3938.9,3938.8,0.6582]
[1758897953093,1.56139356,3938.9,3938.8,0.6582]
[1758897954004,1.56139356,3938.9,3938.7,3.86794139]
[1758897954297,1.10472356,3938.8,3938.7,3.86794139]
[1758897954700,0.45667,3938.9,3938.8,0.6582]
[1758897955101,1.56139356,3938.9,3938.8,0.6582]
[1758897956297,0.6531,3938.8,3938.7,0.00194139]
[1758897956492,1.10472356,3938.8,3938.7,0.00194139]
[1758897957103,1.75782356,3938.8,3938.7,0.00194139]
[1758897958697,1.10472356,3938.8,3938.7,0.00194139]
[1758897958891,1.10472356,3938.8,3938.7,0.66014139]
[1758897959200,1.75782356,3938.8,3938.7,0.00194139]
[1758897959700,1.10472356,3938.8,3938.7,0.66014139]
[1758897960401,1.10472356,3938.8,3938.7,0.00194139]
[1758897960402,2.21450356,3938.8,3938.7,0.00194139]
[1758897960799,1.56140356,3938.8,3938.7,0.66014139]
[1758897961098,0.45668,3938.8,3938.7,0.66014139]
[1758897961707,0.27,3938.9,3938.8,1.11488]
[1758897961998,0.45667,3938.9,3938.8,0.6582]
[1758897962401,0.0253,3939.2,3939.1,0.45665]
[1758897962711,3.66432,3940.2,3940.1,0.6582]
[1758897962903,0.45659,3939.6,3939.5,0.2614]
[1758897963197,5.40562356,3940.2,3939.5,0.2614]
[1758897963198,6.86447499,3939.8,3939.5,0.2614]
[1758897963399,0.45658,3939.7,3939.6,0.6582]
[1758897963702,0.45657,3939.8,3939.6,0.6582]
[1758897963904,0.72653,3940.1,3940.0,0.2614]
[1758897964203,1.14119,3940.7,3940.5,0.2614]
[1758897964204,0.45647,3940.6,3940.5,0.2614]
[1758897964400,0.17754271,3940.8,3940.5,5.2614]
[1758897964605,0.17754271,3940.8,3940.7,0.6582]
[1758897964905,0.45846679,3941.0,3940.9,0.6582]
[1758897964906,0.00203679,3941.0,3940.9,0.6582]
[1758897965405,0.00203679,3941.0,3940.9,0.9282]
[1758897965603,0.00203679,3941.0,3940.9,5.6582]
[1758897965905,0.0253,3941.7,3940.9,5.9282]
[1758897966104,0.0253,3941.7,3941.6,0.6862]
[1758897967097,0.02770426,3941.7,3941.6,0.95947071]
[1758897967496,0.02770426,3941.7,3941.6,0.27327071]
[1758897967702,3.2078,3943.0,3942.5,0.2682]
[1758897967905,1.56094356,3942.8,3942.6,0.6836]
[1758897968101,1.10472356,3942.9,3942.6,0.6836]
[1758897968306,3.2078,3943.0,3942.9,0.6836]
[1758897968605,3.21065006,3943.0,3942.9,0.6836]
[1758897968805,4.31537362,3943.0,3942.9,0.6836]
[1758897969201,4.31537362,3943.0,3942.5,0.2682]
[1758897969202,0.45624,3942.6,3942.5,0.6836]
[1758897969403,1.56096356,3942.6,3942.5,0.6836]
[1758897969609,1.56096356,3942.6,3942.1,0.27]
[1758897969610,1.10472356,3942.6,3942.1,0.27]
[1758897969910,0.45629,3942.3,3942.2,0.6836]
[1758897970313,0.45629,3942.3,3942.1,0.27]
[1758897970314,0.45626,3942.5,3942.3,0.6836]
[1758897970511,1.14053,3942.9,3942.1,0.6836]
[1758897970512,0.45629,3942.2,3942.1,0.6836]
[1758897971306,0.4563,3942.1,3942.0,0.2682]
[1758897971498,0.4563,3942.1,3942.0,0.9518]
[1758897971701,0.4563,3942.1,3942.0,1.2218]
[1758897971905,0.4563,3942.1,3941.8,3.2078]
[1758897971906,0.45632,3941.9,3941.8,3.8914]
[1758897972107,1.56104356,3941.9,3941.8,3.8914]
[1758897972303,0.4563,3942.1,3942.0,0.9518]
[1758897972503,1.56102356,3942.1,3942.0,0.6836]
[1758897972707,0.4563,3942.1,3942.0,0.9518]
[1758897973204,0.45629,3942.2,3942.1,0.6836]
[1758897974707,1.78835,3942.9,3942.6,0.6836]
[1758897974708,3.2178,3942.9,3942.6,0.6836]
[1758897974911,3.67401,3942.9,3942.7,0.6836]
[1758897975103,0.01,3942.9,3942.8,1.13982]
[1758897975303,0.00285006,3943.0,3942.9,0.6836]
[1758897975817,0.45905006,3943.0,3942.9,0.6836]
[1758897976006,0.00285006,3943.0,3942.9,5.9526]
[1758897976206,0.45613,3943.6,3943.5,0.9518]
[1758897976515,3.2078,3943.8,3943.6,0.6836]
[1758897976712,3.66391,3943.8,3943.6,0.6836]
[1758897976908,0.45606,3944.2,3944.0,0.2682]
[1758897977107,3.66385,3944.3,3944.2,0.6836]
[1758897977507,3.66642637,3944.3,3944.2,0.6836]
[1758897977719,3.21037637,3944.3,3944.2,0.6836]
[1758897978107,0.45613,3943.6,3943.5,3.476]
[1758897978311,0.45612,3943.7,3943.5,3.745]
[1758897978615,3.21037637,3944.3,3943.6,0.6836]
[1758897978813,3.21037637,3944.3,3943.7,0.269]
[1758897978814,0.4561,3943.9,3943.7,0.269]
[1758897979015,0.45608,3944.1,3944.0,0.9518]
[1758897979212,1.11599993,3944.3,3944.0,0.9518]
[1758897979213,0.45606,3944.2,3944.0,0.9518]
[1758897979516,0.45606,3944.2,3944.1,0.9526]
[1758897979816,0.01127637,3944.3,3944.2,0.6836]
[1758897980414,0.46732637,3944.3,3944.2,0.6836]
[1758897980613,0.01127637,3944.3,3944.2,0.6836]
[1758897981015,0.01127637,3944.3,3944.2,0.9526]
[1758897981215,0.00257637,3944.3,3944.2,0.9526]
[1758897982012,0.00257637,3944.3,3944.2,0.6836]
[1758897982318,0.45611,3943.8,3943.7,0.6836]
[1758897982507,0.45611,3943.9,3943.7,0.269]
[1758897982814,1.56083356,3943.9,3943.8,0.6836]
[1758897983014,1.56083356,3943.9,3943.8,0.9526]
[1758897984308,0.45613,3943.6,3943.5,3.476]
[1758897985009,1.56085356,3943.6,3943.5,3.8914]
[1758897985212,3.21037637,3944.3,3943.6,0.6836]
[1758897985416,0.4561,3943.8,3943.7,0.269]
[1758897985612,0.45612,3943.6,3943.5,3.476]
[1758897985817,0.45612,3943.6,3943.5,3.745]
[1758897986018,0.45611,3943.7,3943.6,0.6836]
[1758897986210,0.6406,3944.2,3943.6,1.13972]
[1758897986515,1.56083356,3943.7,3943.6,0.6836]
[1758897986716,1.10472356,3943.7,3943.6,1.40872]
[1758897987108,0.4561,3943.9,3943.8,0.6836]
[1758897987309,0.45606,3944.1,3944.0,0.9518]
[1758897987516,0.00257637,3944.3,3944.0,3.745]
[1758897987808,0.00257637,3944.3,3944.0,4.4286]
[1758897988022,0.00257637,3944.3,3944.2,1.13965]
[1758897988214,0.45594,3945.2,3945.0,0.72415]
[1758897988411,0.45594,3945.2,3945.1,0.6836]
[1758897988614,0.45594,3945.2,3945.1,0.9526]
[1758897988911,1.56066356,3945.2,3945.1,0.9526]
[1758897989112,2.20585737,3945.2,3945.1,0.00224085]
[1758897990023,7.20585737,3945.2,3945.1,0.00224085]
[1758897990316,1.56265737,3945.2,3945.1,0.00224085]
[1758897990520,2.20585737,3945.2,3945.1,0.00224085]
[1758897991118,7.20585737,3945.2,3945.1,0.00224085]
[1758897991420,7.20585737,3945.2,3944.0,3.2078]
[1758897991421,0.45605,3944.2,3944.0,3.2078]
[1758897991723,1.56078356,3944.1,3944.0,3.2078]
[1758897991915,1.56078356,3944.1,3944.0,3.8914]
[1758897992317,1.56078356,3944.1,3944.0,4.16146373]
[1758897992711,1.10472356,3944.1,3944.0,4.61755373]
[1758897992919,4.34781,3944.8,3944.0,4.61755373]
[1758897992920,0.45606,3944.3,3944.2,0.6836]
[1758897993225,1.14002,3944.7,3944.0,3.47786373]
[1758897993226,0.45608,3944.1,3944.0,3.47786373]
[1758897993424,1.56080356,3944.1,3944.0,3.74686373]
[1758897993621,0.45608,3944.1,3944.0,3.74686373]
[1758897993919,0.45608,3944.1,3944.0,4.43046373]
[1758897994127,4.34781,3944.8,3944.2,0.6836]
[1758897994323,1.56076356,3944.4,3944.2,0.6836]
[1758897994518,1.10472356,3944.6,3944.3,0.9526]
[1758897994713,1.56074356,3944.6,3944.5,0.9518]
[1758897994914,0.45608,3944.1,3944.0,3.47786373]
[1758897995217,1.56080356,3944.1,3944.0,1.22266373]
[1758897995418,0.45608,3944.1,3944.0,1.22266373]
[1758897995615,1.56080356,3944.1,3944.0,0.00186373]
[1758897995918,1.56080356,3944.1,3944.0,0.95446373]
[1758897996122,1.56080356,3944.1,3944.0,0.68546373]
[1758897996328,2.20400356,3944.1,3944.0,0.00186373]
[1758897997531,2.20400356,3944.1,3944.0,0.68376373]
[1758897997532,1.56080356,3944.1,3944.0,0.68376373]
[1758897998419,3.2078,3944.9,3944.0,3.46756373]
[1758897998616,1.56074356,3944.6,3944.5,0.9398]
[1758897998826,0.45602,3944.6,3944.5,0.6819]
[1758897999024,2.0574749,3944.6,3944.5,0.6819]
[1758897999215,1.56074356,3944.6,3944.5,0.9398]
[1758897999414,3.4768,3945.3,3944.5,0.9398]
[1758897999620,1.56074356,3944.6,3944.5,0.6819]
[1758897999817,1.10472356,3944.6,3944.5,1.13793]
[1758898000121,0.45601,3944.7,3944.6,0.6819]
[1758898000422,1.56073356,3944.7,3944.6,0.6819]
[1758898000623,0.45603,3944.5,3944.4,3.2078]
[1758898000831,2.18105356,3944.5,3944.4,3.2078]
[1758898001332,2.18105356,3944.5,3944.0,0.00186373]
[1758898001333,1.07638,3944.1,3944.0,0.00186373]
[1758898001516,0.45623,3942.8,3942.7,0.6819]
[1758898001718,1.10472356,3942.8,3942.7,0.6819]
[1758898001914,0.269,3943.9,3943.1,0.6819]
[1758898002114,1.07647,3943.3,3943.1,3.2078]
[1758898002318,0.45622,3942.9,3942.8,0.6819]
[1758898002623,1.2015704,3942.9,3942.8,0.68369659]
[1758898002821,0.09684684,3942.9,3942.8,0.68369659]
[1758898003524,0.59442286,3942.9,3942.8,0.68369659]
[1758898003717,1.2015704,3942.9,3942.8,0.68369659]
[1758898003922,1.2015704,3942.9,3942.8,0.95269659]
[1758898004325,1.2015704,3942.9,3942.8,0.68369659]
[1758898005224,1.69957342,3942.9,3942.8,0.68369659]
[1758898005634,2.31987342,3942.9,3942.8,0.00179659]
[1758898006132,1.69957342,3942.9,3942.8,0.68369659]
[1758898006932,0.59484986,3942.9,3942.8,0.68369659]
[1758898007225,0.09684684,3942.9,3942.8,0.95269659]
[1758898007429,0.09700211,3942.9,3942.8,0.27079659]
[1758898007732,0.09700211,3942.9,3942.8,1.40890659]
[1758898008428,1.65792567,3942.9,3942.8,0.95269659]
[1758898008825,1.65792567,3942.9,3942.8,0.68369659]
[1758898009020,1.65792567,3942.9,3942.8,0.00179659]
[1758898009229,1.65792567,3942.9,3942.8,0.68369659]
[1758898009525,0.09700211,3942.9,3942.8,1.13990659]
[1758898009828,0.55320211,3942.9,3942.8,0.68369659]
[1758898010330,0.09700211,3942.9,3942.8,1.13990659]
[1758898010830,0.55320211,3942.9,3942.8,0.68369659]
[1758898011126,0.09700211,3942.9,3942.8,1.13990659]
[1758898011724,0.45616,3943.3,3943.2,1.13807]
[1758898012027,0.09689249,3943.3,3943.2,1.40707]
[1758898012228,0.55304249,3943.3,3943.2,1.40707]
[1758898012428,0.09689249,3943.3,3943.2,4.61487]
[1758898012833,0.09689249,3943.3,3943.2,4.1587]
[1758898012834,0.55304249,3943.3,3943.2,4.1587]
[1758898013029,1.65776605,3943.3,3943.2,3.8897]
[1758898013427,2.27806605,3943.3,3943.2,3.2078]
[1758898014227,0.09689249,3943.3,3943.2,3.8897]
[1758898014434,0.09689249,3943.3,3943.2,4.34588]
[1758898014936,0.09689249,3943.3,3943.2,4.61488]
[1758898016032,3.2078,3944.3,3944.1,0.6819]
[1758898016223,0.45608,3944.1,3944.0,0.269]
[1758898016427,1.56080356,3944.1,3944.0,0.9509]
[1758898016928,1.56080356,3944.1,3944.0,1.2088]
[1758898017131,0.45612,3943.7,3943.6,3.2078]
[1758898017332,1.56084356,3943.7,3943.6,3.4768]